[Event "Live Chess"]
[Site "Chess.com"]
[Date "2023.05.21"]
[Round "-"]
[White "chessfiction"]
[Black "Biranidun"]
[Result "0-1"]
[WhiteElo "2340"]
[BlackElo "2691"]
[TimeControl "300"]
[EndTime "16:18:56 PDT"]
[Termination "Biranidun won by resignation"]

1. e4 {[%clk 0:04:59.6]} 1... c5 {[%clk 0:04:58.9]} 2. Nf3 {[%clk 0:04:57.1]}
2... d6 {[%clk 0:04:58.5]} 3. d4 {[%clk 0:04:56.3]} 3... cxd4 {[%clk 0:04:58.4]}
4. c3 {[%clk 0:04:51.9]} 4... Nf6 {[%clk 0:04:57.6]} 5. Bd3 {[%clk 0:04:50.5]}
5... dxc3 {[%clk 0:04:57]} 6. Nxc3 {[%clk 0:04:49]} 6... Nc6 {[%clk 0:04:56.8]}
7. O-O {[%clk 0:04:47.2]} 7... Bg4 {[%clk 0:04:56]} 8. Bg5 {[%clk 0:04:39.3]}
8... e6 {[%clk 0:04:53.9]} 9. Rc1 {[%clk 0:04:34.4]} 9... a6 {[%clk 0:04:51.7]}
10. Re1 {[%clk 0:04:31.9]} 10... Be7 {[%clk 0:04:50.7]} 11. h3 {[%clk
0:04:19.1]} 11... Bxf3 {[%clk 0:04:47]} 12. Qxf3 {[%clk 0:03:55.7]} 12... O-O
{[%clk 0:04:46]} 13. Qe3 {[%clk 0:03:31.4]} 13... h6 {[%clk 0:04:39.1]} 14. Bxh6
{[%clk 0:03:25.5]} 14... gxh6 {[%clk 0:04:37.5]} 15. Qxh6 {[%clk 0:03:25.4]}
15... Ne5 {[%clk 0:04:26.7]} 16. Re3 {[%clk 0:03:18.8]} 16... Nfg4 {[%clk
0:03:56.7]} 17. hxg4 {[%clk 0:03:10.9]} 17... Bg5 {[%clk 0:03:55.9]} 18. Qh5
{[%clk 0:03:04.7]} 18... Bxe3 {[%clk 0:03:45.8]} 19. fxe3 {[%clk 0:02:59.7]}
19... Nxd3 {[%clk 0:03:45.1]} 20. Rf1 {[%clk 0:02:57.9]} 20... Ne5 {[%clk
0:03:39.3]} 21. g5 {[%clk 0:02:52.4]} 21... Ng6 {[%clk 0:03:31.2]} 22. Rf6
{[%clk 0:02:49.2]} 22... Qe8 {[%clk 0:03:23.6]} 23. Ne2 {[%clk 0:02:43.2]} 23...
Rc8 {[%clk 0:02:44.3]} 24. Nf4 {[%clk 0:02:36.9]} 24... Rc1+ {[%clk 0:02:42.4]}
25. Kh2 {[%clk 0:02:30.3]} 25... Rc7 {[%clk 0:02:41.9]} 26. Nxg6 {[%clk
0:02:22.9]} 26... fxg6 {[%clk 0:02:39.8]} 27. Rxg6+ {[%clk 0:02:22.8]} 27... Rg7
{[%clk 0:02:36.9]} 28. Rxg7+ {[%clk 0:02:18.9]} 28... Kxg7 {[%clk 0:02:36.8]}
29. Qh6+ {[%clk 0:02:18]} 29... Kg8 {[%clk 0:02:33.8]} 30. g6 {[%clk 0:02:09.1]}
30... Qe7 {[%clk 0:02:33.2]} 0-1

[Event "Live Chess"]
[Site "Chess.com"]
[Date "2023.05.21"]
[Round "-"]
[White "mikkyb4"]
[Black "LiamClery2020"]
[Result "0-1"]
[WhiteElo "1030"]
[BlackElo "2065"]
[TimeControl "300"]
[EndTime "16:19:00 PDT"]
[Termination "LiamClery2020 won by resignation"]

1. e4 {[%clk 0:04:56.7]} 1... Nf6 {[%clk 0:04:59.9]} 2. Nc3 {[%clk 0:04:53.7]}
2... e5 {[%clk 0:04:57.5]} 3. f4 {[%clk 0:04:51.6]} 3... d5 {[%clk 0:04:56.6]}
4. fxe5 {[%clk 0:04:50.5]} 4... Nxe4 {[%clk 0:04:56]} 5. Qf3 {[%clk 0:04:49.4]}
5... Nc6 {[%clk 0:04:55]} 6. Bb5 {[%clk 0:04:47.1]} 6... Nxc3 {[%clk 0:04:53.2]}
7. dxc3 {[%clk 0:04:46.1]} 7... Qh4+ {[%clk 0:04:52.4]} 8. g3 {[%clk 0:04:40.9]}
8... Qe4+ {[%clk 0:04:51.7]} 9. Be3 {[%clk 0:04:39.6]} 9... Bf5 {[%clk
0:04:43.9]} 10. Bxc6+ {[%clk 0:04:10.2]} 10... bxc6 {[%clk 0:04:42.8]} 11. Rb1
{[%clk 0:04:02.1]} 11... Qxe5 {[%clk 0:04:35.4]} 12. Ne2 {[%clk 0:03:56.4]}
12... Be4 {[%clk 0:04:32.6]} 13. Bd4 {[%clk 0:03:33.8]} 13... Bxf3 {[%clk
0:04:29.8]} 14. Bxe5 {[%clk 0:03:32.8]} 14... Bxh1 {[%clk 0:04:29.4]} 15. Nf4
{[%clk 0:03:31]} 15... Be4 {[%clk 0:04:27]} 16. Rc1 {[%clk 0:03:28.3]} 16... Bd6
{[%clk 0:04:25.9]} 17. Bxg7 {[%clk 0:03:26.4]} 17... Rg8 {[%clk 0:04:23.1]} 18.
Bd4 {[%clk 0:03:17.6]} 18... Bxf4 {[%clk 0:04:21.9]} 19. gxf4 {[%clk 0:03:16.1]}
19... O-O-O {[%clk 0:04:21.7]} 20. Bxa7 {[%clk 0:03:12.2]} 20... Rg2 {[%clk
0:04:20.6]} 21. Kd1 {[%clk 0:03:07.5]} 21... Bf3+ {[%clk 0:04:15.6]} 22. Ke1
{[%clk 0:03:05.7]} 22... Re8+ {[%clk 0:04:15.5]} 23. Kf1 {[%clk 0:03:04.2]}
23... Rxh2 {[%clk 0:04:14.8]} 0-1

[Event "Live Chess"]
[Site "Chess.com"]
[Date "2023.05.21"]
[Round "-"]
[White "CeladonFish"]
[Black "AlanPaling"]
[Result "0-1"]
[WhiteElo "1119"]
[BlackElo "1341"]
[TimeControl "300"]
[EndTime "16:19:46 PDT"]
[Termination "AlanPaling won by resignation"]

1. d4 {[%clk 0:04:56.1]} 1... e5 {[%clk 0:04:58.2]} 2. dxe5 {[%clk 0:04:53.4]}
2... Nc6 {[%clk 0:04:57.3]} 3. Bf4 {[%clk 0:04:49.8]} 3... Qe7 {[%clk
0:04:56.3]} 4. Nf3 {[%clk 0:04:48.6]} 4... Qb4+ {[%clk 0:04:54.9]} 5. Nbd2
{[%clk 0:04:47.4]} 5... Qxf4 {[%clk 0:04:53.6]} 6. e3 {[%clk 0:04:44.6]} 6...
Qb4 {[%clk 0:04:50.8]} 7. b3 {[%clk 0:04:40.4]} 7... Nge7 {[%clk 0:04:43.3]} 8.
Qe2 {[%clk 0:04:37.8]} 8... Ng6 {[%clk 0:04:39.7]} 9. Qc4 {[%clk 0:04:30.5]}
9... Qxc4 {[%clk 0:04:37.8]} 10. Bxc4 {[%clk 0:04:27.9]} 10... Ncxe5 {[%clk
0:04:33.7]} 11. O-O {[%clk 0:04:17.9]} 11... Nxc4 {[%clk 0:04:29.7]} 12. Nxc4
{[%clk 0:04:17.1]} 12... Bb4 {[%clk 0:04:21.1]} 13. Rfd1 {[%clk 0:04:15]} 13...
O-O {[%clk 0:04:15.2]} 14. Nfe5 {[%clk 0:04:10.1]} 14... Nxe5 {[%clk 0:04:12.5]}
15. Nxe5 {[%clk 0:04:09.2]} 15... Bc3 {[%clk 0:04:00.7]} 16. Nxd7 {[%clk
0:03:33.3]} 16... Bxd7 {[%clk 0:03:58.8]} 17. Rxd7 {[%clk 0:03:33]} 17... Bxa1
{[%clk 0:03:56.9]} 18. Rxc7 {[%clk 0:03:32]} 0-1

[Event "Live Chess"]
[Site "Chess.com"]
[Date "2023.05.21"]
[Round "-"]
[White "Dark_Night123"]
[Black "KGreenGator"]
[Result "0-1"]
[WhiteElo "1563"]
[BlackElo "1766"]
[TimeControl "300"]
[EndTime "16:19:49 PDT"]
[Termination "KGreenGator won by resignation"]

1. e4 {[%clk 0:04:59.7]} 1... c5 {[%clk 0:04:57.6]} 2. c3 {[%clk 0:04:58.8]}
2... Nc6 {[%clk 0:04:56.9]} 3. d4 {[%clk 0:04:58.3]} 3... cxd4 {[%clk
0:04:55.6]} 4. cxd4 {[%clk 0:04:58.2]} 4... d5 {[%clk 0:04:54.8]} 5. e5 {[%clk
0:04:57.4]} 5... e6 {[%clk 0:04:53.2]} 6. Nc3 {[%clk 0:04:55.6]} 6... a6 {[%clk
0:04:52.5]} 7. Nf3 {[%clk 0:04:54.8]} 7... Nge7 {[%clk 0:04:50.5]} 8. Be3 {[%clk
0:04:54.4]} 8... Ng6 {[%clk 0:04:48.9]} 9. Bd3 {[%clk 0:04:53.9]} 9... Be7
{[%clk 0:04:46.7]} 10. O-O {[%clk 0:04:53.2]} 10... O-O {[%clk 0:04:45]} 11. Rc1
{[%clk 0:04:52.4]} 11... Nb4 {[%clk 0:04:42.7]} 12. Bb1 {[%clk 0:04:51]} 12...
Bd7 {[%clk 0:04:39.7]} 13. a3 {[%clk 0:04:49.9]} 13... Nc6 {[%clk 0:04:38.4]}
14. Na4 {[%clk 0:04:46.1]} 14... Qa5 {[%clk 0:04:34.8]} 15. Nc5 {[%clk
0:04:43.4]} 15... Bxc5 {[%clk 0:04:28]} 16. Rxc5 {[%clk 0:04:43.3]} 16... Qb6
{[%clk 0:04:25.5]} 17. b4 {[%clk 0:04:39.4]} 17... a5 {[%clk 0:04:24]} 18. Qd2
{[%clk 0:04:36.2]} 18... axb4 {[%clk 0:04:22.6]} 19. axb4 {[%clk 0:04:36.1]}
19... Qxb4 {[%clk 0:04:21.1]} 20. Qc1 {[%clk 0:04:32.3]} 20... b6 {[%clk
0:04:17]} 21. Rxc6 {[%clk 0:04:27.3]} 21... Bxc6 {[%clk 0:04:15.5]} 22. Qxc6
{[%clk 0:04:27.2]} 22... Rfc8 {[%clk 0:04:12.9]} 23. Qb7 {[%clk 0:04:16.4]}
23... Qa5 {[%clk 0:04:08]} 24. Rc1 {[%clk 0:04:13]} 24... Rxc1+ {[%clk
0:04:04.8]} 25. Bxc1 {[%clk 0:04:12.2]} 25... h6 {[%clk 0:04:02.9]} 26. Bxg6
{[%clk 0:04:07.3]} 26... fxg6 {[%clk 0:04:00.4]} 27. Qe7 {[%clk 0:04:02.8]}
27... Qc3 {[%clk 0:03:50.6]} 28. Qxe6+ {[%clk 0:03:59.7]} 28... Kh7 {[%clk
0:03:49.7]} 29. Bd2 {[%clk 0:03:53.8]} 29... Ra1+ {[%clk 0:03:47.1]} 0-1

[Event "Live Chess"]
[Site "Chess.com"]
[Date "2023.05.21"]
[Round "-"]
[White "AbilifyXL"]
[Black "toog"]
[Result "0-1"]
[WhiteElo "1979"]
[BlackElo "2582"]
[TimeControl "300"]
[EndTime "16:20:06 PDT"]
[Termination "toog won by resignation"]

1. d4 {[%clk 0:04:59.3]} 1... Nf6 {[%clk 0:04:57.1]} 2. c4 {[%clk 0:04:58.4]}
2... e5 {[%clk 0:04:55.4]} 3. dxe5 {[%clk 0:04:54.8]} 3... Ng4 {[%clk
0:04:53.5]} 4. Nf3 {[%clk 0:04:53]} 4... Nc6 {[%clk 0:04:51.8]} 5. Nbd2 {[%clk
0:04:51.5]} 5... Ngxe5 {[%clk 0:04:38.4]} 6. Nxe5 {[%clk 0:04:50.5]} 6... Nxe5
{[%clk 0:04:38.3]} 7. e3 {[%clk 0:04:49.4]} 7... Bc5 {[%clk 0:04:35.6]} 8. b3
{[%clk 0:04:43.3]} 8... O-O {[%clk 0:04:34]} 9. Bb2 {[%clk 0:04:42.4]} 9... Re8
{[%clk 0:04:33.3]} 10. Be2 {[%clk 0:04:40.8]} 10... a5 {[%clk 0:04:32.2]} 11.
Nf3 {[%clk 0:04:38.9]} 11... Bb4+ {[%clk 0:04:26.9]} 12. Nd2 {[%clk 0:04:37.9]}
12... Ra6 {[%clk 0:04:24.5]} 13. O-O {[%clk 0:04:37]} 13... Rh6 {[%clk
0:04:23.2]} 14. Nf3 {[%clk 0:04:27.6]} 14... Nxf3+ {[%clk 0:04:22.2]} 15. Bxf3
{[%clk 0:04:26.7]} 15... Qh4 {[%clk 0:04:21.8]} 16. h3 {[%clk 0:04:25.7]} 16...
d6 {[%clk 0:04:21.1]} 17. Qd4 {[%clk 0:04:13.4]} 17... Qg5 {[%clk 0:04:13.3]}
18. Kh2 {[%clk 0:03:45.3]} 18... c6 {[%clk 0:03:38.9]} 19. Rad1 {[%clk
0:03:24.2]} 19... d5 {[%clk 0:03:26.2]} 20. cxd5 {[%clk 0:03:16.5]} 20... Bd6+
{[%clk 0:03:24.3]} 21. Kg1 {[%clk 0:03:11.2]} 21... Bxh3 {[%clk 0:03:21.9]} 22.
dxc6 {[%clk 0:02:54.3]} 22... Bh2+ {[%clk 0:03:16.2]} 23. Kxh2 {[%clk
0:02:52.2]} 23... Bxg2+ {[%clk 0:03:15.1]} 0-1

[Event "Live Chess"]
[Site "Chess.com"]
[Date "2023.05.21"]
[Round "-"]
[White "Pablo_dmp"]
[Black "DaveL5678"]
[Result "1-0"]
[WhiteElo "1888"]
[BlackElo "1012"]
[TimeControl "300"]
[EndTime "16:20:07 PDT"]
[Termination "Pablo_dmp won by resignation"]

1. e4 {[%clk 0:04:58.4]} 1... c6 {[%clk 0:04:53.8]} 2. d4 {[%clk 0:04:56.8]}
2... d5 {[%clk 0:04:52.8]} 3. e5 {[%clk 0:04:56.5]} 3... Bf5 {[%clk 0:04:50.1]}
4. h4 {[%clk 0:04:55.1]} 4... e6 {[%clk 0:04:49.1]} 5. g4 {[%clk 0:04:54.2]}
5... Be4 {[%clk 0:04:44.8]} 6. f3 {[%clk 0:04:53.6]} 6... Bg6 {[%clk 0:04:33.9]}
7. h5 {[%clk 0:04:52.5]} 7... Bxc2 {[%clk 0:04:29.8]} 8. Qxc2 {[%clk 0:04:50.8]}
8... Nd7 {[%clk 0:04:20.7]} 9. Nh3 {[%clk 0:04:43.2]} 9... Bb4+ {[%clk
0:04:13.8]} 10. Bd2 {[%clk 0:04:41.2]} 10... Qa5 {[%clk 0:04:03.8]} 11. Bxb4
{[%clk 0:04:39.6]} 11... Qxb4+ {[%clk 0:04:02.8]} 12. Qc3 {[%clk 0:04:39.3]}
12... Qb6 {[%clk 0:03:59]} 13. Nd2 {[%clk 0:04:34.2]} 13... c5 {[%clk
0:03:54.2]} 14. dxc5 {[%clk 0:04:26.5]} 14... Nxc5 {[%clk 0:03:51.5]} 15. b4
{[%clk 0:04:19.9]} 15... Na4 {[%clk 0:03:41]} 16. Qb3 {[%clk 0:04:12.3]} 16...
Qc6 {[%clk 0:03:23.5]} 17. b5 {[%clk 0:04:00.4]} 17... Nc5 {[%clk 0:02:55.8]}
18. bxc6 {[%clk 0:03:50.9]} 18... Nxb3 {[%clk 0:02:54.1]} 19. axb3 {[%clk
0:03:50.8]} 19... bxc6 {[%clk 0:02:52.3]} 20. b4 {[%clk 0:03:46.8]} 20... Ne7
{[%clk 0:02:46.1]} 21. b5 {[%clk 0:03:45.9]} 21... cxb5 {[%clk 0:02:43.7]} 22.
Bxb5+ {[%clk 0:03:44.4]} 22... Kd8 {[%clk 0:02:36.1]} 23. Ng5 {[%clk 0:03:43.3]}
23... Kc7 {[%clk 0:02:14.6]} 24. Nxf7 {[%clk 0:03:38.9]} 24... Rhf8 {[%clk
0:02:11.1]} 25. Nd6 {[%clk 0:03:27]} 25... Rab8 {[%clk 0:02:01.8]} 26. Rc1+
{[%clk 0:03:22.3]} 26... Kb6 {[%clk 0:01:57.9]} 27. O-O {[%clk 0:03:20]} 27...
Rfc8 {[%clk 0:01:42.9]} 28. Nxc8+ {[%clk 0:03:14.3]} 28... Nxc8 {[%clk
0:01:38.2]} 29. Bd7 {[%clk 0:03:12.8]} 29... Nd6 {[%clk 0:01:35.6]} 30. Bxe6
{[%clk 0:03:11.6]} 30... a5 {[%clk 0:01:29.9]} 31. exd6 {[%clk 0:03:10.4]} 31...
a4 {[%clk 0:01:25.6]} 32. Rc8 {[%clk 0:03:07.1]} 32... Rxc8 {[%clk 0:01:24.3]}
33. Bxc8 {[%clk 0:03:07]} 33... a3 {[%clk 0:01:23.1]} 34. d7 {[%clk 0:03:06]}
34... a2 {[%clk 0:01:20]} 35. d8=Q+ {[%clk 0:03:04.9]} 35... Kc5 {[%clk
0:01:18.8]} 36. Qa5+ {[%clk 0:03:03.8]} 36... Kd4 {[%clk 0:01:17]} 37. Qxa2
{[%clk 0:03:03.7]} 37... Kd3 {[%clk 0:01:16]} 38. Ba6+ {[%clk 0:02:58.1]} 1-0

[Event "Live Chess"]
[Site "Chess.com"]
[Date "2023.05.21"]
[Round "-"]
[White "KeithArkell"]
[Black "jennybobby44"]
[Result "1-0"]
[WhiteElo "2611"]
[BlackElo "1845"]
[TimeControl "300"]
[EndTime "16:20:10 PDT"]
[Termination "KeithArkell won by resignation"]

1. d4 {[%clk 0:04:57.9]} 1... Nf6 {[%clk 0:04:56.2]} 2. Nf3 {[%clk 0:04:57.1]}
2... d5 {[%clk 0:04:53.8]} 3. c4 {[%clk 0:04:56.2]} 3... e6 {[%clk 0:04:52.9]}
4. cxd5 {[%clk 0:04:55]} 4... exd5 {[%clk 0:04:52]} 5. Nc3 {[%clk 0:04:54.4]}
5... c6 {[%clk 0:04:48.3]} 6. Qc2 {[%clk 0:04:52.7]} 6... Be7 {[%clk 0:04:44.6]}
7. Bg5 {[%clk 0:04:41.3]} 7... h6 {[%clk 0:04:43.3]} 8. Bh4 {[%clk 0:04:39.3]}
8... O-O {[%clk 0:04:42.3]} 9. e3 {[%clk 0:04:38.7]} 9... Re8 {[%clk 0:04:36.8]}
10. Bd3 {[%clk 0:04:37.7]} 10... Be6 {[%clk 0:04:17.3]} 11. O-O {[%clk
0:04:34.6]} 11... Nbd7 {[%clk 0:04:16.3]} 12. Rab1 {[%clk 0:04:33.1]} 12... Ng4
{[%clk 0:03:48.4]} 13. Bxe7 {[%clk 0:04:31]} 13... Qxe7 {[%clk 0:03:45]} 14.
Bh7+ {[%clk 0:04:29.9]} 14... Kh8 {[%clk 0:03:36.6]} 15. Bf5 {[%clk 0:04:29.8]}
15... Ngf6 {[%clk 0:03:29.8]} 16. b4 {[%clk 0:04:25.5]} 16... Bxf5 {[%clk
0:03:24.9]} 17. Qxf5 {[%clk 0:04:25.4]} 17... Qe6 {[%clk 0:03:23.5]} 18. Qxe6
{[%clk 0:04:24.8]} 18... Rxe6 {[%clk 0:03:21.8]} 19. Rfc1 {[%clk 0:04:22.2]}
19... Nb6 {[%clk 0:02:53.8]} 20. Ne5 {[%clk 0:04:18.9]} 20... Re7 {[%clk
0:02:44.9]} 21. b5 {[%clk 0:04:15.8]} 21... Rc8 {[%clk 0:02:32.4]} 22. bxc6
{[%clk 0:04:14.4]} 22... bxc6 {[%clk 0:02:31.2]} 23. Nd3 {[%clk 0:04:13.5]}
23... Nc4 {[%clk 0:02:24]} 24. Na4 {[%clk 0:04:09.7]} 24... Ne4 {[%clk
0:02:18.4]} 25. Nac5 {[%clk 0:04:07.3]} 25... Ned2 {[%clk 0:02:11]} 26. Ra1
{[%clk 0:03:51.4]} 26... g6 {[%clk 0:02:07.4]} 27. Nb3 {[%clk 0:03:48.6]} 27...
Ne4 {[%clk 0:01:43.5]} 28. g3 {[%clk 0:03:43]} 28... Kg7 {[%clk 0:01:41.5]} 29.
Ndc5 {[%clk 0:03:40.2]} 29... Nxc5 {[%clk 0:01:39.7]} 30. Nxc5 {[%clk
0:03:39.1]} 30... Rb8 {[%clk 0:01:31.6]} 31. Rab1 {[%clk 0:03:38.1]} 31... Ree8
{[%clk 0:01:29.5]} 32. Nd3 {[%clk 0:03:30.6]} 32... Rec8 {[%clk 0:01:22.8]} 33.
Kg2 {[%clk 0:03:28.2]} 33... Rb6 {[%clk 0:01:17.6]} 34. Rb3 {[%clk 0:03:26.7]}
34... Rcb8 {[%clk 0:01:15.7]} 35. Nc5 {[%clk 0:03:25.5]} 35... Rxb3 {[%clk
0:01:14.2]} 36. axb3 {[%clk 0:03:24.4]} 36... Rb6 {[%clk 0:01:10.8]} 37. bxc4
{[%clk 0:03:23]} 37... dxc4 {[%clk 0:01:01.6]} 38. Rxc4 {[%clk 0:03:21.9]} 1-0

[Event "Live Chess"]
[Site "Chess.com"]
[Date "2023.05.21"]
[Round "-"]
[White "Daniel_Gliddon_FA"]
[Black "gmnorfolk"]
[Result "0-1"]
[WhiteElo "1204"]
[BlackElo "2112"]
[TimeControl "300"]
[EndTime "16:20:24 PDT"]
[Termination "gmnorfolk won by resignation"]

1. e4 {[%clk 0:04:52.7]} 1... e5 {[%clk 0:04:55]} 2. d4 {[%clk 0:04:47.3]} 2...
exd4 {[%clk 0:04:53]} 3. c3 {[%clk 0:04:46]} 3... Qe7 {[%clk 0:04:51.2]} 4. Bd3
{[%clk 0:04:38.1]} 4... d5 {[%clk 0:04:49.1]} 5. Nd2 {[%clk 0:04:32.1]} 5...
dxe4 {[%clk 0:04:47.2]} 6. Nxe4 {[%clk 0:04:30.4]} 6... f5 {[%clk 0:04:46.3]} 7.
f3 {[%clk 0:04:26.7]} 7... fxe4 {[%clk 0:04:45.4]} 8. fxe4 {[%clk 0:04:25]} 8...
Nf6 {[%clk 0:04:44.3]} 9. Nf3 {[%clk 0:04:19.9]} 9... Nc6 {[%clk 0:04:35.4]} 10.
O-O {[%clk 0:04:17.9]} 10... dxc3 {[%clk 0:04:34.3]} 11. e5 {[%clk 0:04:15.8]}
11... Ng4 {[%clk 0:04:22.5]} 12. Bf4 {[%clk 0:04:01.8]} 12... Qc5+ {[%clk
0:04:18.4]} 13. Kh1 {[%clk 0:03:57.8]} 13... cxb2 {[%clk 0:04:10]} 14. Rb1
{[%clk 0:03:52.7]} 14... Nf2+ {[%clk 0:04:07.6]} 15. Rxf2 {[%clk 0:03:49.1]}
15... Qxf2 {[%clk 0:04:06.4]} 16. Bb5 {[%clk 0:03:41.9]} 16... Be6 {[%clk
0:04:01]} 17. Bxc6+ {[%clk 0:03:39.5]} 17... bxc6 {[%clk 0:03:59.6]} 18. Ng5
{[%clk 0:03:36.2]} 18... Bd5 {[%clk 0:03:54.8]} 19. Qh5+ {[%clk 0:03:25.1]}
19... g6 {[%clk 0:03:52.2]} 20. Qh3 {[%clk 0:03:22.2]} 20... Be7 {[%clk
0:03:45.1]} 21. Nxh7 {[%clk 0:03:14]} 21... Rxh7 {[%clk 0:03:39.2]} 0-1

[Event "Live Chess"]
[Site "Chess.com"]
[Date "2023.05.21"]
[Round "-"]
[White "JohanKjeldahl"]
[Black "Jo1ts"]
[Result "1-0"]
[WhiteElo "1874"]
[BlackElo "776"]
[TimeControl "300"]
[EndTime "16:20:25 PDT"]
[Termination "JohanKjeldahl won by checkmate"]

1. e4 {[%clk 0:04:57.5]} 1... d5 {[%clk 0:04:58.6]} 2. exd5 {[%clk 0:04:55.5]}
2... Qxd5 {[%clk 0:04:58.5]} 3. Nc3 {[%clk 0:04:54]} 3... Qd8 {[%clk 0:04:57.7]}
4. d4 {[%clk 0:04:52.1]} 4... Nf6 {[%clk 0:04:56.9]} 5. Nf3 {[%clk 0:04:50.6]}
5... e6 {[%clk 0:04:55.8]} 6. Be2 {[%clk 0:04:48.3]} 6... Nc6 {[%clk 0:04:53.5]}
7. O-O {[%clk 0:04:46]} 7... Bb4 {[%clk 0:04:50.5]} 8. a3 {[%clk 0:04:42.3]}
8... Bxc3 {[%clk 0:04:48.1]} 9. bxc3 {[%clk 0:04:41.4]} 9... O-O {[%clk
0:04:43.7]} 10. Rb1 {[%clk 0:04:39.9]} 10... b6 {[%clk 0:04:39.9]} 11. Bg5
{[%clk 0:04:34.1]} 11... h6 {[%clk 0:04:36.7]} 12. Bh4 {[%clk 0:04:32.4]} 12...
Ne7 {[%clk 0:04:29]} 13. Bxf6 {[%clk 0:04:27.8]} 13... gxf6 {[%clk 0:04:28.8]}
14. Qd2 {[%clk 0:04:26.7]} 14... Kh7 {[%clk 0:04:24.6]} 15. Rb5 {[%clk
0:04:24.4]} 15... Rg8 {[%clk 0:04:20.7]} 16. Rh5 {[%clk 0:04:22.2]} 16... Bb7
{[%clk 0:04:01.6]} 17. Qxh6# {[%clk 0:04:19.9]} 1-0

[Event "Live Chess"]
[Site "Chess.com"]
[Date "2023.05.21"]
[Round "-"]
[White "CheckThis4"]
[Black "whitedjohn"]
[Result "1-0"]
[WhiteElo "2540"]
[BlackElo "1650"]
[TimeControl "300"]
[EndTime "16:20:38 PDT"]
[Termination "CheckThis4 won by checkmate"]

1. d4 {[%clk 0:04:57.8]} 1... Nf6 {[%clk 0:04:57.4]} 2. Nc3 {[%clk 0:04:57.1]}
2... d5 {[%clk 0:04:55]} 3. e4 {[%clk 0:04:55.6]} 3... dxe4 {[%clk 0:04:51.2]}
4. f3 {[%clk 0:04:54.1]} 4... exf3 {[%clk 0:04:49.7]} 5. Nxf3 {[%clk 0:04:52.7]}
5... Bg4 {[%clk 0:04:48.2]} 6. h3 {[%clk 0:04:48.8]} 6... Bh5 {[%clk 0:04:44.7]}
7. g4 {[%clk 0:04:39]} 7... Bg6 {[%clk 0:04:40.9]} 8. Ne5 {[%clk 0:04:38]} 8...
e6 {[%clk 0:04:29.8]} 9. Bg2 {[%clk 0:04:35.9]} 9... c6 {[%clk 0:04:26.6]} 10.
h4 {[%clk 0:04:34.7]} 10... h5 {[%clk 0:04:21.8]} 11. Nxg6 {[%clk 0:04:32.5]}
11... fxg6 {[%clk 0:04:19.4]} 12. Qd3 {[%clk 0:04:31.9]} 12... Kf7 {[%clk
0:04:10.8]} 13. g5 {[%clk 0:04:21]} 13... Nd5 {[%clk 0:04:02]} 14. O-O+ {[%clk
0:04:12.5]} 14... Kg8 {[%clk 0:03:59.9]} 15. Qxg6 {[%clk 0:04:10.5]} 15... Qe7
{[%clk 0:03:46.6]} 16. Nxd5 {[%clk 0:03:58.5]} 16... exd5 {[%clk 0:03:41.1]} 17.
Bh3 {[%clk 0:03:57.1]} 17... Qd6 {[%clk 0:03:16.1]} 18. Be6+ {[%clk 0:03:51.1]}
18... Qxe6 {[%clk 0:03:13.2]} 19. Qxe6+ {[%clk 0:03:49.7]} 19... Kh7 {[%clk
0:03:11.2]} 20. g6# {[%clk 0:03:49.2]} 1-0

[Event "Live Chess"]
[Site "Chess.com"]
[Date "2023.05.21"]
[Round "-"]
[White "Doge_Dandolo"]
[Black "EdenHazard8"]
[Result "1-0"]
[WhiteElo "2030"]
[BlackElo "2005"]
[TimeControl "300"]
[EndTime "16:20:46 PDT"]
[Termination "Doge_Dandolo won by resignation"]

1. Nf3 {[%clk 0:04:56]} 1... d5 {[%clk 0:04:58.8]} 2. c4 {[%clk 0:04:55.2]} 2...
Nf6 {[%clk 0:04:58.3]} 3. cxd5 {[%clk 0:04:54.1]} 3... e6 {[%clk 0:04:56.8]} 4.
dxe6 {[%clk 0:04:52.7]} 4... Bxe6 {[%clk 0:04:56.7]} 5. Nc3 {[%clk 0:04:51.3]}
5... Nc6 {[%clk 0:04:55.4]} 6. d4 {[%clk 0:04:49]} 6... Bb4 {[%clk 0:04:54.7]}
7. a3 {[%clk 0:04:45.9]} 7... Bxc3+ {[%clk 0:04:53.4]} 8. bxc3 {[%clk
0:04:44.8]} 8... O-O {[%clk 0:04:51.2]} 9. Qc2 {[%clk 0:04:43.5]} 9... Na5
{[%clk 0:04:49.2]} 10. e4 {[%clk 0:04:41.3]} 10... Nxe4 {[%clk 0:04:44.9]} 11.
Qxe4 {[%clk 0:04:39.1]} 11... Re8 {[%clk 0:04:44.8]} 12. Be2 {[%clk 0:04:37]}
12... Bc4 {[%clk 0:04:42.7]} 13. Qg4 {[%clk 0:04:24.9]} 13... Rxe2+ {[%clk
0:04:40.6]} 14. Kd1 {[%clk 0:04:22.8]} 14... Re6 {[%clk 0:04:24]} 15. Ne5 {[%clk
0:04:21]} 15... Bb3+ {[%clk 0:04:22.3]} 16. Ke1 {[%clk 0:04:18]} 16... Nc4
{[%clk 0:04:21.7]} 17. Bg5 {[%clk 0:04:06.9]} 17... f6 {[%clk 0:04:16.8]} 18.
Qxe6+ {[%clk 0:04:04.9]} 1-0

[Event "Live Chess"]
[Site "Chess.com"]
[Date "2023.05.21"]
[Round "-"]
[White "LL220284LL"]
[Black "Hussamalhaidar"]
[Result "1-0"]
[WhiteElo "2391"]
[BlackElo "1039"]
[TimeControl "300"]
[EndTime "16:21:01 PDT"]
[Termination "LL220284LL won by resignation"]

1. Nf3 {[%clk 0:04:59.2]} 1... d5 {[%clk 0:04:55.3]} 2. e3 {[%clk 0:04:57.5]}
2... Nc6 {[%clk 0:04:54.5]} 3. b3 {[%clk 0:04:56.4]} 3... e5 {[%clk 0:04:53.2]}
4. Bb2 {[%clk 0:04:55.1]} 4... Bd6 {[%clk 0:04:50.8]} 5. c4 {[%clk 0:04:51.8]}
5... d4 {[%clk 0:04:49]} 6. exd4 {[%clk 0:04:50.9]} 6... exd4 {[%clk 0:04:47.8]}
7. Nxd4 {[%clk 0:04:49.8]} 7... Nxd4 {[%clk 0:04:46.2]} 8. Bxd4 {[%clk
0:04:49.7]} 8... c5 {[%clk 0:04:43.7]} 9. Bxg7 {[%clk 0:04:47.7]} 9... Nf6
{[%clk 0:04:37.1]} 10. Bxh8 {[%clk 0:04:42.9]} 10... Qe7+ {[%clk 0:04:36.1]} 11.
Qe2 {[%clk 0:04:41.7]} 11... Bg4 {[%clk 0:04:32.1]} 12. Qxe7+ {[%clk 0:04:38.1]}
12... Kxe7 {[%clk 0:04:28.7]} 13. Bxf6+ {[%clk 0:04:31.3]} 13... Kxf6 {[%clk
0:04:27.3]} 14. f3 {[%clk 0:04:28.4]} 14... Bf5 {[%clk 0:04:23.8]} 15. Nc3
{[%clk 0:04:27.1]} 15... Be5 {[%clk 0:04:22.5]} 16. Kf2 {[%clk 0:04:25.3]} 16...
Rd8 {[%clk 0:04:20.8]} 17. g4 {[%clk 0:04:23.9]} 17... Rxd2+ {[%clk 0:04:19.1]}
18. Be2 {[%clk 0:04:15]} 18... Bd3 {[%clk 0:04:16.6]} 19. Rad1 {[%clk
0:04:10.6]} 19... Bxc3 {[%clk 0:04:08.7]} 20. Rxd2 {[%clk 0:04:09.2]} 20... Bxd2
{[%clk 0:04:06.8]} 21. Bxd3 {[%clk 0:04:08.9]} 21... Bf4 {[%clk 0:04:03.7]} 22.
Be4 {[%clk 0:04:08]} 22... b6 {[%clk 0:03:45.3]} 23. h4 {[%clk 0:04:07.9]} 1-0